[Event "Titled Tuesday Blitz May 10 Early 2022"]
[White "Jian, Alex"]
[Black "Tania, Sachdev"]
[WhiteFideId "30901022"]
[BlackFideId "5007844"]
[WhiteElo "2111"]
[BlackElo "2280"]
[Result "1-0"]
[Round "05"]
[TimeControl "180+1"]
[Date "2022.05.11"]
[WhiteClock "0:00:05"]
[BlackClock "0:00:01"]

1. d4 {[%clk 0:03:00]}  Nf6 {[%clk 0:02:59]} 2. c4 {[%clk 0:03:00]}  e6 {[%clk 0:03:00]} 3. Nc3 {[%clk 0:03:00]}  Bb4 {[%clk 0:02:59]} 4. Qc2 {[%clk 0:03:00]}  d5 {[%clk 0:02:52]} 5. cxd5 {[%clk 0:02:58]}  exd5 {[%clk 0:02:49]} 6. Bg5 {[%clk 0:02:58]}  O-O {[%clk 0:02:45]} 7. e3 {[%clk 0:02:57]}  h6 {[%clk 0:02:44]} 8. Bh4 {[%clk 0:02:57]}  c5 {[%clk 0:02:40]} 9. dxc5 {[%clk 0:02:57]}  Na6 {[%clk 0:02:25]} 10. a3 {[%clk 0:02:39]}  Bxc3+ {[%clk 0:01:53]} 11. Qxc3 {[%clk 0:02:37]}  Ne4 {[%clk 0:01:52]} 12. Bxd8 {[%clk 0:02:28]}  Nxc3 {[%clk 0:01:52]} 13. Be7 {[%clk 0:01:30]}  Re8 {[%clk 0:01:52]} 14. Bh4 {[%clk 0:01:30]}  Ne4 {[%clk 0:01:41]} 15. Bb5 {[%clk 0:01:29]}  Re6 {[%clk 0:01:30]} 16. b4 {[%clk 0:01:22]}  d4 {[%clk 0:01:17]} 17. Bc4 {[%clk 0:01:15]}  Re8 {[%clk 0:01:15]} 18. Bb5 {[%clk 0:01:03]}  Re6 {[%clk 0:01:09]} 19. Nf3 {[%clk 0:00:57]}  dxe3 {[%clk 0:01:04]} 20. fxe3 {[%clk 0:00:57]}  g5 {[%clk 0:00:53]} 21. Bf2 {[%clk 0:00:52]}  Nc7 {[%clk 0:00:45]} 22. Bc4 {[%clk 0:00:51]}  Re8 {[%clk 0:00:46]} 23. O-O {[%clk 0:00:35]}  Bg4 {[%clk 0:00:46]} 24. Nd4 {[%clk 0:00:24]}  Nd2 {[%clk 0:00:36]} 25. Rfc1 {[%clk 0:00:24]}  Nxc4 {[%clk 0:00:36]} 26. Rxc4 {[%clk 0:00:25]}  Nd5 {[%clk 0:00:37]} 27. Re1 {[%clk 0:00:22]}  Bd7 {[%clk 0:00:33]} 28. Rcc1 {[%clk 0:00:19]}  Re4 {[%clk 0:00:22]} 29. Nf3 {[%clk 0:00:15]}  Rae8 {[%clk 0:00:18]} 30. Nd2 {[%clk 0:00:14]}  R4e7 {[%clk 0:00:18]} 31. e4 {[%clk 0:00:11]}  Nf4 {[%clk 0:00:19]} 32. Rc3 {[%clk 0:00:11]}  Bb5 {[%clk 0:00:16]} 33. Rce3 {[%clk 0:00:08]}  Nd3 {[%clk 0:00:14]} 34. Rf1 {[%clk 0:00:08]}  Ne5 {[%clk 0:00:13]} 35. Rc1 {[%clk 0:00:07]}  Ng4 {[%clk 0:00:13]} 36. Ree1 {[%clk 0:00:06]}  Rd8 {[%clk 0:00:13]} 37. Nf3 {[%clk 0:00:05]}  Nf6 {[%clk 0:00:11]} 38. Nd4 {[%clk 0:00:04]}  Rxe4 {[%clk 0:00:10]} 39. Nxb5 {[%clk 0:00:04]}  Rxe1+ {[%clk 0:00:09]} 40. Rxe1 {[%clk 0:00:05]}  Nd5 {[%clk 0:00:10]} 41. Nd6 {[%clk 0:00:05]}  Nf4 {[%clk 0:00:09]} 42. Rd1 {[%clk 0:00:04]}  h5 {[%clk 0:00:06]} 43. g3 {[%clk 0:00:05]}  Ne2+ {[%clk 0:00:07]} 44. Kf1 {[%clk 0:00:05]}  Nc3 {[%clk 0:00:07]} 45. Rd3 {[%clk 0:00:05]}  Na4 {[%clk 0:00:07]} 46. Ke2 {[%clk 0:00:05]}  Rd7 {[%clk 0:00:02]} 47. Ne4 {[%clk 0:00:05]}  Re7 {[%clk 0:00:02]} 48. Kf3 {[%clk 0:00:04]}  g4+ {[%clk 0:00:02]} 49. Kf4 {[%clk 0:00:05]}  Kg7 {[%clk 0:00:03]} 50. Rd4 {[%clk 0:00:04]}  b6 {[%clk 0:00:01]} 51. Rd5 {[%clk 0:00:04]}  bxc5 {[%clk 0:00:01]} 52. bxc5 {[%clk 0:00:05]}  Nb2 {[%clk 0:00:01]} 53. Bd4+ {[%clk 0:00:05]} 1-0


[Site "https://www.chess.com"]

[Event "Titled Tuesday Blitz May 10 Early 2022"]
[White "Jodorcovsky Werjivker, Paulo"]
[Black "Nugumanov, Bakhtiyar"]
[WhiteFideId "3700305"]
[BlackFideId "13701797"]
[WhiteElo "2075"]
[BlackElo "2262"]
[Result "1-0"]
[Round "05"]
[TimeControl "180+1"]
[Date "2022.05.11"]
[WhiteClock "0:01:28"]
[BlackClock "0:00:33"]

1. e4 {[%clk 0:03:00]}  c6 {[%clk 0:02:59]} 2. d4 {[%clk 0:02:51]}  d5 {[%clk 0:02:59]} 3. exd5 {[%clk 0:02:52]}  cxd5 {[%clk 0:03:00]} 4. Bd3 {[%clk 0:02:48]}  Nf6 {[%clk 0:02:45]} 5. c3 {[%clk 0:02:46]}  Nc6 {[%clk 0:02:36]} 6. Bf4 {[%clk 0:02:45]}  Bg4 {[%clk 0:02:28]} 7. Qb3 {[%clk 0:02:42]}  Qd7 {[%clk 0:02:28]} 8. Nd2 {[%clk 0:02:42]}  e6 {[%clk 0:02:22]} 9. Ngf3 {[%clk 0:02:40]}  Bd6 {[%clk 0:02:18]} 10. Bxd6 {[%clk 0:02:22]}  Qxd6 {[%clk 0:02:19]} 11. O-O {[%clk 0:02:22]}  O-O {[%clk 0:02:17]} 12. Rae1 {[%clk 0:02:21]}  Rab8 {[%clk 0:01:56]} 13. Ne5 {[%clk 0:02:19]}  Bf5 {[%clk 0:01:50]} 14. Bxf5 {[%clk 0:02:15]}  exf5 {[%clk 0:01:51]} 15. Qc2 {[%clk 0:02:12]}  Ne4 {[%clk 0:01:46]} 16. Nxe4 {[%clk 0:02:09]}  fxe4 {[%clk 0:01:38]} 17. f3 {[%clk 0:02:06]}  f5 {[%clk 0:01:09]} 18. fxe4 {[%clk 0:02:03]}  dxe4 {[%clk 0:01:07]} 19. Qb3+ {[%clk 0:02:00]}  Kh8 {[%clk 0:01:05]} 20. Nf7+ {[%clk 0:02:00]}  Rxf7 {[%clk 0:01:05]} 21. Qxf7 {[%clk 0:02:01]}  Rf8 {[%clk 0:01:05]} 22. Qxb7 {[%clk 0:01:55]}  Qg6 {[%clk 0:00:48]} 23. Rxe4 {[%clk 0:01:49]}  Rb8 {[%clk 0:00:44]} 24. Qc7 {[%clk 0:01:35]}  h6 {[%clk 0:00:33]} 25. Re2 {[%clk 0:01:28]} 1-0


[Site "https://www.chess.com"]

[Event "Titled Tuesday Blitz May 10 Early 2022"]
[White "Kaasen, Tor Fredrik"]
[Black "Tymrakiewicz, Rafal"]
[WhiteFideId "1516647"]
[BlackFideId "1108832"]
[WhiteElo "2335"]
[BlackElo "2205"]
[Result "1-0"]
[Round "05"]
[TimeControl "180+1"]
[Date "2022.05.11"]
[WhiteClock "0:01:07"]
[BlackClock "0:00:01"]

1. d4 {[%clk 0:03:00]}  Nf6 {[%clk 0:02:59]} 2. c4 {[%clk 0:02:59]}  g6 {[%clk 0:03:00]} 3. Nc3 {[%clk 0:02:59]}  Bg7 {[%clk 0:03:00]} 4. e4 {[%clk 0:02:58]}  O-O {[%clk 0:03:01]} 5. Nf3 {[%clk 0:02:58]}  d6 {[%clk 0:03:02]} 6. Be2 {[%clk 0:02:58]}  e5 {[%clk 0:02:59]} 7. d5 {[%clk 0:02:59]}  Nh5 {[%clk 0:02:58]} 8. Be3 {[%clk 0:02:52]}  Nf4 {[%clk 0:02:53]} 9. Bf1 {[%clk 0:02:52]}  Bg4 {[%clk 0:02:42]} 10. g3 {[%clk 0:02:45]}  Nh3 {[%clk 0:02:18]} 11. Be2 {[%clk 0:02:43]}  f5 {[%clk 0:02:16]} 12. exf5 {[%clk 0:02:35]}  gxf5 {[%clk 0:01:51]} 13. Nh4 {[%clk 0:02:21]}  Bxe2 {[%clk 0:01:47]} 14. Qxe2 {[%clk 0:02:20]}  f4 {[%clk 0:01:46]} 15. Bd2 {[%clk 0:02:20]}  e4 {[%clk 0:01:13]} 16. Nxe4 {[%clk 0:02:15]}  Re8 {[%clk 0:00:45]} 17. O-O-O {[%clk 0:01:37]}  Nxf2 {[%clk 0:00:39]} 18. Qxf2 {[%clk 0:01:33]}  Rxe4 {[%clk 0:00:39]} 19. Nf5 {[%clk 0:01:25]}  Bxb2+ {[%clk 0:00:16]} 20. Kxb2 {[%clk 0:01:25]}  Qf6+ {[%clk 0:00:16]} 21. Bc3 {[%clk 0:01:26]}  Qxf5 {[%clk 0:00:16]} 22. gxf4 {[%clk 0:01:27]}  Nd7 {[%clk 0:00:08]} 23. Rhg1+ {[%clk 0:01:27]}  Kf8 {[%clk 0:00:08]} 24. Qg2 {[%clk 0:01:25]}  Qg6 {[%clk 0:00:01]} 25. Qh3 {[%clk 0:01:06]}  Re2+ {[%clk 0:00:01]} 26. Ka1 {[%clk 0:01:07]} 1-0


[Site "https://www.chess.com"]

[Event "Titled Tuesday Blitz May 10 Early 2022"]
[White "Keller, Peter"]
[Black "Ambartsumova, Karina"]
[WhiteFideId "1272105"]
[BlackFideId "4166299"]
[WhiteElo "2275"]
[BlackElo "2262"]
[Result "1-0"]
[Round "05"]
[TimeControl "180+1"]
[Date "2022.05.11"]
[WhiteClock "0:00:05"]
[BlackClock "0:00:01"]

1. e4 {[%clk 0:02:58]}  e5 {[%clk 0:02:59]} 2. Nf3 {[%clk 0:02:56]}  Nc6 {[%clk 0:02:58]} 3. Bc4 {[%clk 0:02:53]}  Bc5 {[%clk 0:02:56]} 4. d3 {[%clk 0:02:45]}  Nf6 {[%clk 0:02:56]} 5. O-O {[%clk 0:02:44]}  O-O {[%clk 0:02:55]} 6. Bg5 {[%clk 0:02:43]}  Be7 {[%clk 0:02:51]} 7. c3 {[%clk 0:02:25]}  d6 {[%clk 0:02:46]} 8. a4 {[%clk 0:02:20]}  Be6 {[%clk 0:02:45]} 9. Bxe6 {[%clk 0:02:12]}  fxe6 {[%clk 0:02:46]} 10. Nbd2 {[%clk 0:01:53]}  Qe8 {[%clk 0:02:29]} 11. Bh4 {[%clk 0:01:49]}  Nh5 {[%clk 0:02:26]} 12. Bg3 {[%clk 0:01:49]}  Qd7 {[%clk 0:02:08]} 13. Re1 {[%clk 0:01:32]}  Nf4 {[%clk 0:02:00]} 14. d4 {[%clk 0:01:20]}  exd4 {[%clk 0:01:29]} 15. cxd4 {[%clk 0:01:21]}  e5 {[%clk 0:01:27]} 16. dxe5 {[%clk 0:01:06]}  dxe5 {[%clk 0:01:28]} 17. Nc4 {[%clk 0:01:05]}  Qe6 {[%clk 0:01:28]} 18. Ne3 {[%clk 0:00:47]}  Rad8 {[%clk 0:01:25]} 19. Qc2 {[%clk 0:00:44]}  Bd6 {[%clk 0:00:57]} 20. Red1 {[%clk 0:00:36]}  Nb4 {[%clk 0:00:49]} 21. Qc4 {[%clk 0:00:33]}  Qxc4 {[%clk 0:00:44]} 22. Nxc4 {[%clk 0:00:34]}  Ne2+ {[%clk 0:00:30]} 23. Kf1 {[%clk 0:00:34]}  Nxg3+ {[%clk 0:00:27]} 24. hxg3 {[%clk 0:00:35]}  Nc6 {[%clk 0:00:25]} 25. Ke2 {[%clk 0:00:27]}  h6 {[%clk 0:00:24]} 26. Rd2 {[%clk 0:00:22]}  Kf7 {[%clk 0:00:24]} 27. Rad1 {[%clk 0:00:22]}  Ke6 {[%clk 0:00:24]} 28. Ne3 {[%clk 0:00:13]}  Bb4 {[%clk 0:00:23]} 29. Rxd8 {[%clk 0:00:13]}  Rxd8 {[%clk 0:00:24]} 30. Rxd8 {[%clk 0:00:14]}  Nxd8 {[%clk 0:00:24]} 31. Kd3 {[%clk 0:00:13]}  Bc5 {[%clk 0:00:24]} 32. Nd2 {[%clk 0:00:10]}  Bxe3 {[%clk 0:00:22]} 33. Kxe3 {[%clk 0:00:10]}  Nc6 {[%clk 0:00:22]} 34. Nb3 {[%clk 0:00:09]}  b6 {[%clk 0:00:22]} 35. f4 {[%clk 0:00:08]}  Ne7 {[%clk 0:00:20]} 36. Nd2 {[%clk 0:00:07]}  Nc6 {[%clk 0:00:14]} 37. Nf3 {[%clk 0:00:07]}  a5 {[%clk 0:00:11]} 38. Kd3 {[%clk 0:00:05]}  Nb4+ {[%clk 0:00:11]} 39. Kc4 {[%clk 0:00:05]}  exf4 {[%clk 0:00:10]} 40. gxf4 {[%clk 0:00:06]}  Kd6 {[%clk 0:00:08]} 41. e5+ {[%clk 0:00:05]}  Ke6 {[%clk 0:00:09]} 42. Nd4+ {[%clk 0:00:05]}  Ke7 {[%clk 0:00:08]} 43. f5 {[%clk 0:00:06]}  c5 {[%clk 0:00:07]} 44. Nf3 {[%clk 0:00:04]}  Nc6 {[%clk 0:00:05]} 45. Kb5 {[%clk 0:00:05]}  Kd7 {[%clk 0:00:02]} 46. Kxb6 {[%clk 0:00:05]}  Nd4 {[%clk 0:00:02]} 47. Kxc5 {[%clk 0:00:06]}  Nxf5 {[%clk 0:00:02]} 48. Kb5 {[%clk 0:00:04]}  Ke6 {[%clk 0:00:02]} 49. Kxa5 {[%clk 0:00:04]}  Ne3 {[%clk 0:00:03]} 50. g3 {[%clk 0:00:04]}  Nc4+ {[%clk 0:00:03]} 51. Kb5 {[%clk 0:00:03]}  Nxb2 {[%clk 0:00:03]} 52. a5 {[%clk 0:00:04]}  Nd3 {[%clk 0:00:01]} 53. a6 {[%clk 0:00:05]} 1-0


[Site "https://www.chess.com"]

[Event "Titled Tuesday Blitz May 10 Early 2022"]
[White "Korchmar, Vasiliy"]
[Black "Carlsen, Magnus"]
[WhiteFideId "24131750"]
[BlackFideId "1503014"]
[WhiteElo "2370"]
[BlackElo "2832"]
[Result "0-1"]
[Round "05"]
[TimeControl "180+1"]
[Date "2022.05.10"]
[WhiteClock "0:00:01"]
[BlackClock "0:02:25"]

1. e4 {[%clk 0:02:16]}  b6 {[%clk 0:03:00]} 2. d4 {[%clk 0:02:16]}  Bb7 {[%clk 0:03:01]} 3. Bd3 {[%clk 0:02:16]}  d6 {[%clk 0:03:01]} 4. Nc3 {[%clk 0:02:16]}  Nd7 {[%clk 0:03:01]} 5. Nf3 {[%clk 0:02:09]}  g6 {[%clk 0:02:58]} 6. Be3 {[%clk 0:02:07]}  Bg7 {[%clk 0:02:58]} 7. Qd2 {[%clk 0:02:05]}  e5 {[%clk 0:02:57]} 8. O-O-O {[%clk 0:02:01]}  Ngf6 {[%clk 0:02:49]} 9. Bh6 {[%clk 0:01:55]}  Bxh6 {[%clk 0:02:49]} 10. Qxh6 {[%clk 0:01:56]}  Qe7 {[%clk 0:02:38]} 11. dxe5 {[%clk 0:01:05]}  dxe5 {[%clk 0:02:38]} 12. Bc4 {[%clk 0:00:56]}  O-O-O {[%clk 0:02:37]} 13. Nd5 {[%clk 0:00:52]}  Nxd5 {[%clk 0:02:37]} 14. Bxd5 {[%clk 0:00:45]}  c6 {[%clk 0:02:37]} 15. Bb3 {[%clk 0:00:39]}  f6 {[%clk 0:02:37]} 16. Qe3 {[%clk 0:00:34]}  Nc5 {[%clk 0:02:36]} 17. h4 {[%clk 0:00:29]}  Kc7 {[%clk 0:02:35]} 18. h5 {[%clk 0:00:25]}  g5 {[%clk 0:02:35]} 19. h6 {[%clk 0:00:19]}  a5 {[%clk 0:02:31]} 20. a3 {[%clk 0:00:17]}  Rxd1+ {[%clk 0:02:28]} 21. Rxd1 {[%clk 0:00:17]}  Rd8 {[%clk 0:02:29]} 22. Rxd8 {[%clk 0:00:10]}  Qxd8 {[%clk 0:02:29]} 23. Nh2 {[%clk 0:00:08]}  Bc8 {[%clk 0:02:29]} 24. Nf1 {[%clk 0:00:06]}  Qf8 {[%clk 0:02:27]} 25. Nd2 {[%clk 0:00:01]}  Qxh6 {[%clk 0:02:27]} 26. Nc4 {[%clk 0:00:02]}  Qh1+ {[%clk 0:02:26]} 27. Kd2 {[%clk 0:00:02]}  Qxg2 {[%clk 0:02:26]} 28. Nxa5 {[%clk 0:00:01]}  Nxe4+ {[%clk 0:02:25]} 0-1


[Site "https://www.chess.com"]

[Event "Titled Tuesday Blitz May 10 Early 2022"]
[White "Kosteniuk, Alexandra"]
[Black "Ismayil, Malak"]
[WhiteFideId "4128125"]
[BlackFideId "13412604"]
[WhiteElo "2469"]
[BlackElo "1879"]
[Result "1-0"]
[Round "05"]
[TimeControl "180+1"]
[Date "2022.05.11"]
[WhiteClock "0:00:19"]
[BlackClock "0:00:02"]

1. e4 {[%clk 0:03:00]}  e5 {[%clk 0:02:55]} 2. Nf3 {[%clk 0:03:00]}  Nc6 {[%clk 0:02:49]} 3. Bc4 {[%clk 0:03:00]}  Bc5 {[%clk 0:02:46]} 4. c3 {[%clk 0:03:00]}  Nf6 {[%clk 0:02:46]} 5. d4 {[%clk 0:03:00]}  exd4 {[%clk 0:02:47]} 6. cxd4 {[%clk 0:03:01]}  Bb4+ {[%clk 0:02:45]} 7. Nbd2 {[%clk 0:03:02]}  Bxd2+ {[%clk 0:02:43]} 8. Bxd2 {[%clk 0:02:58]}  d6 {[%clk 0:02:44]} 9. e5 {[%clk 0:02:44]}  dxe5 {[%clk 0:02:31]} 10. Nxe5 {[%clk 0:02:39]}  O-O {[%clk 0:01:50]} 11. Nxc6 {[%clk 0:02:31]}  bxc6 {[%clk 0:01:51]} 12. O-O {[%clk 0:02:25]}  Qxd4 {[%clk 0:01:47]} 13. Qc1 {[%clk 0:02:18]}  Bf5 {[%clk 0:01:13]} 14. Be3 {[%clk 0:02:09]}  Qh4 {[%clk 0:01:07]} 15. Bg5 {[%clk 0:02:07]}  Qh5 {[%clk 0:01:04]} 16. Bxf6 {[%clk 0:02:05]}  gxf6 {[%clk 0:01:04]} 17. Bb3 {[%clk 0:02:01]}  Qg6 {[%clk 0:00:51]} 18. f3 {[%clk 0:01:57]}  Rad8 {[%clk 0:00:34]} 19. Qxc6 {[%clk 0:01:46]}  Rd2 {[%clk 0:00:35]} 20. Rf2 {[%clk 0:01:47]}  Rfd8 {[%clk 0:00:31]} 21. Raf1 {[%clk 0:01:39]}  Bh3 {[%clk 0:00:21]} 22. f4 {[%clk 0:01:32]}  Bf5 {[%clk 0:00:13]} 23. Rxd2 {[%clk 0:01:08]}  Rxd2 {[%clk 0:00:12]} 24. Rf2 {[%clk 0:01:09]}  Rxf2 {[%clk 0:00:06]} 25. Kxf2 {[%clk 0:01:09]}  Be4 {[%clk 0:00:07]} 26. Qe8+ {[%clk 0:01:09]}  Kg7 {[%clk 0:00:08]} 27. g3 {[%clk 0:01:10]}  f5 {[%clk 0:00:04]} 28. Qe5+ {[%clk 0:01:05]}  Kh6 {[%clk 0:00:04]} 29. Qd4 {[%clk 0:00:55]}  Qh5 {[%clk 0:00:04]} 30. Qf6+ {[%clk 0:00:55]}  Qg6 {[%clk 0:00:04]} 31. Qxg6+ {[%clk 0:00:50]}  fxg6 {[%clk 0:00:04]} 32. Ke3 {[%clk 0:00:48]}  Kg7 {[%clk 0:00:04]} 33. Kd4 {[%clk 0:00:48]}  Kf6 {[%clk 0:00:05]} 34. Bd5 {[%clk 0:00:44]}  Bb1 {[%clk 0:00:03]} 35. Kc5 {[%clk 0:00:43]}  g5 {[%clk 0:00:03]} 36. a4 {[%clk 0:00:31]}  gxf4 {[%clk 0:00:04]} 37. gxf4 {[%clk 0:00:31]}  Kg6 {[%clk 0:00:05]} 38. Bf3 {[%clk 0:00:29]}  Be4 {[%clk 0:00:03]} 39. Be2 {[%clk 0:00:23]}  c6 {[%clk 0:00:03]} 40. Kd6 {[%clk 0:00:21]}  Kf6 {[%clk 0:00:03]} 41. a5 {[%clk 0:00:21]}  h5 {[%clk 0:00:02]} 42. h4 {[%clk 0:00:21]}  Kg6 {[%clk 0:00:01]} 43. b4 {[%clk 0:00:19]}  Bd5 {[%clk 0:00:01]} 44. Ke5 {[%clk 0:00:17]}  Be4 {[%clk 0:00:01]} 45. Bd1 {[%clk 0:00:17]}  Bg2 {[%clk 0:00:01]} 46. Bc2 {[%clk 0:00:17]}  Bh1 {[%clk 0:00:01]} 47. Bxf5+ {[%clk 0:00:17]}  Kh6 {[%clk 0:00:02]} 48. Be4 {[%clk 0:00:18]}  Bxe4 {[%clk 0:00:02]} 49. Kxe4 {[%clk 0:00:18]}  Kg6 {[%clk 0:00:01]} 50. Ke5 {[%clk 0:00:19]}  Kf7 {[%clk 0:00:01]} 51. Kf5 {[%clk 0:00:19]}  Ke7 {[%clk 0:00:02]} 52. Kg6 {[%clk 0:00:19]} 1-0


[Site "https://www.chess.com"]

[Event "Titled Tuesday Blitz May 10 Early 2022"]
[White "Kozak, Adam"]
[Black "Janaszak, Dawid"]
[WhiteFideId "753246"]
[BlackFideId "1119206"]
[WhiteElo "2459"]
[BlackElo "2199"]
[Result "1-0"]
[Round "05"]
[TimeControl "180+1"]
[Date "2022.05.10"]
[WhiteClock "0:02:28"]
[BlackClock "0:00:02"]

1. c4 {[%clk 0:02:59]}  Nf6 {[%clk 0:02:58]} 2. Nc3 {[%clk 0:02:59]}  g6 {[%clk 0:02:58]} 3. e4 {[%clk 0:02:59]}  d6 {[%clk 0:02:58]} 4. d4 {[%clk 0:02:59]}  Bg7 {[%clk 0:02:58]} 5. Nf3 {[%clk 0:03:00]}  O-O {[%clk 0:02:57]} 6. Be2 {[%clk 0:03:00]}  c5 {[%clk 0:02:53]} 7. O-O {[%clk 0:03:00]}  cxd4 {[%clk 0:02:49]} 8. Nxd4 {[%clk 0:03:01]}  Nc6 {[%clk 0:02:50]} 9. Be3 {[%clk 0:03:00]}  Nxd4 {[%clk 0:02:48]} 10. Bxd4 {[%clk 0:03:00]}  Bd7 {[%clk 0:02:48]} 11. Re1 {[%clk 0:03:00]}  Bc6 {[%clk 0:02:48]} 12. Nd5 {[%clk 0:02:58]}  Bxd5 {[%clk 0:02:46]} 13. exd5 {[%clk 0:02:57]}  Nd7 {[%clk 0:02:46]} 14. h4 {[%clk 0:02:57]}  Bxd4 {[%clk 0:02:33]} 15. Qxd4 {[%clk 0:02:58]}  Qb6 {[%clk 0:02:34]} 16. Qd2 {[%clk 0:02:57]}  Rfe8 {[%clk 0:02:15]} 17. h5 {[%clk 0:02:56]}  Nf8 {[%clk 0:02:13]} 18. h6 {[%clk 0:02:52]}  e5 {[%clk 0:01:57]} 19. dxe6 {[%clk 0:02:51]}  Nxe6 {[%clk 0:01:51]} 20. Rad1 {[%clk 0:02:50]}  Rad8 {[%clk 0:01:47]} 21. Qc3 {[%clk 0:02:50]}  Re7 {[%clk 0:01:04]} 22. Bg4 {[%clk 0:02:43]}  Qc7 {[%clk 0:00:59]} 23. Qf6 {[%clk 0:02:40]}  Rde8 {[%clk 0:00:46]} 24. b3 {[%clk 0:02:39]}  b6 {[%clk 0:00:27]} 25. Re3 {[%clk 0:02:36]}  Rf8 {[%clk 0:00:12]} 26. Red3 {[%clk 0:02:33]}  Rd7 {[%clk 0:00:07]} 27. Bxe6 {[%clk 0:02:32]}  fxe6 {[%clk 0:00:07]} 28. Qxe6+ {[%clk 0:02:33]}  Kh8 {[%clk 0:00:06]} 29. Rxd6 {[%clk 0:02:33]}  Rxd6 {[%clk 0:00:06]} 30. Qxd6 {[%clk 0:02:32]}  Qf7 {[%clk 0:00:03]} 31. Qe5+ {[%clk 0:02:32]}  Kg8 {[%clk 0:00:03]} 32. Rd2 {[%clk 0:02:33]}  Re8 {[%clk 0:00:03]} 33. Qd4 {[%clk 0:02:32]}  Re1+ {[%clk 0:00:03]} 34. Kh2 {[%clk 0:02:33]}  Qc7+ {[%clk 0:00:03]} 35. g3 {[%clk 0:02:33]}  Qc6 {[%clk 0:00:02]} 36. Qd8+ {[%clk 0:02:32]}  Kf7 {[%clk 0:00:03]} 37. Rd7+ {[%clk 0:02:32]}  Ke6 {[%clk 0:00:03]} 38. Qe7+ {[%clk 0:02:29]}  Kf5 {[%clk 0:00:03]} 39. Rd5+ {[%clk 0:02:29]}  Kg4 {[%clk 0:00:02]} 40. Qxe1 {[%clk 0:02:28]} 1-0


[Site "https://www.chess.com"]

[Event "Titled Tuesday Blitz May 10 Early 2022"]
[White "Kwon, Sehyun"]
[Black "Koziorowicz, Michal"]
[WhiteFideId "13203088"]
[BlackFideId "21809194"]
[WhiteElo "1778"]
[BlackElo "2219"]
[Result "1-0"]
[Round "05"]
[TimeControl "180+1"]
[Date "2022.05.11"]
[WhiteClock "0:00:09"]
[BlackClock "0:00:09"]

1. e4 {[%clk 0:03:00]}  c5 {[%clk 0:03:00]} 2. Nf3 {[%clk 0:03:01]}  d6 {[%clk 0:03:00]} 3. Bb5+ {[%clk 0:03:01]}  Bd7 {[%clk 0:02:58]} 4. Bxd7+ {[%clk 0:03:01]}  Qxd7 {[%clk 0:02:59]} 5. O-O {[%clk 0:03:01]}  Nc6 {[%clk 0:02:55]} 6. Re1 {[%clk 0:03:02]}  g6 {[%clk 0:02:53]} 7. c3 {[%clk 0:03:03]}  d5 {[%clk 0:02:49]} 8. exd5 {[%clk 0:03:00]}  Qxd5 {[%clk 0:02:50]} 9. d4 {[%clk 0:03:00]}  Bg7 {[%clk 0:02:47]} 10. Be3 {[%clk 0:02:30]}  cxd4 {[%clk 0:02:24]} 11. cxd4 {[%clk 0:02:30]}  Nf6 {[%clk 0:02:24]} 12. Nc3 {[%clk 0:02:30]}  Qd7 {[%clk 0:02:11]} 13. d5 {[%clk 0:02:28]}  Nd8 {[%clk 0:01:55]} 14. Ne5 {[%clk 0:02:20]}  Qf5 {[%clk 0:01:25]} 15. Bc5 {[%clk 0:01:59]}  O-O {[%clk 0:01:22]} 16. Bxe7 {[%clk 0:01:58]}  Re8 {[%clk 0:01:20]} 17. d6 {[%clk 0:01:53]}  Nc6 {[%clk 0:01:18]} 18. Nxc6 {[%clk 0:01:33]}  bxc6 {[%clk 0:01:19]} 19. Qa4 {[%clk 0:01:30]}  c5 {[%clk 0:00:48]} 20. h3 {[%clk 0:01:08]}  Nd7 {[%clk 0:00:45]} 21. g4 {[%clk 0:00:55]}  Qf3 {[%clk 0:00:46]} 22. Qxd7 {[%clk 0:00:43]}  Bd4 {[%clk 0:00:46]} 23. Ne4 {[%clk 0:00:43]}  Rad8 {[%clk 0:00:27]} 24. Qc6 {[%clk 0:00:38]}  Qxh3 {[%clk 0:00:17]} 25. Nf6+ {[%clk 0:00:28]}  Kh8 {[%clk 0:00:13]} 26. Nxe8 {[%clk 0:00:20]}  Qg3+ {[%clk 0:00:13]} 27. Qg2 {[%clk 0:00:21]}  Bxf2+ {[%clk 0:00:13]} 28. Kf1 {[%clk 0:00:19]}  Qd3+ {[%clk 0:00:09]} 29. Kxf2 {[%clk 0:00:19]}  Qd4+ {[%clk 0:00:09]} 30. Kf1 {[%clk 0:00:19]}  Rxe8 {[%clk 0:00:09]} 31. Qf3 {[%clk 0:00:16]}  Kg8 {[%clk 0:00:08]} 32. Rad1 {[%clk 0:00:15]}  Qc4+ {[%clk 0:00:09]} 33. Kg2 {[%clk 0:00:14]}  Qc2+ {[%clk 0:00:09]} 34. Kg1 {[%clk 0:00:13]}  Qxb2 {[%clk 0:00:08]} 35. d7 {[%clk 0:00:13]}  Rb8 {[%clk 0:00:06]} 36. d8=Q+ {[%clk 0:00:12]}  Rxd8 {[%clk 0:00:07]} 37. Rxd8+ {[%clk 0:00:12]}  Kg7 {[%clk 0:00:08]} 38. Bf8+ {[%clk 0:00:09]}  Kg8 {[%clk 0:00:09]} 39. Bh6# {[%clk 0:00:09]} 1-0


[Site "https://www.chess.com"]

[Event "Titled Tuesday Blitz May 10 Early 2022"]
[White "Lazavik, Denis"]
[Black "Beerdsen, Thomas"]
[WhiteFideId "13515110"]
[BlackFideId "1030108"]
[WhiteElo "2437"]
[BlackElo "2585"]
[Result "1-0"]
[Round "05"]
[TimeControl "180+1"]
[Date "2022.05.10"]
[WhiteClock "0:01:42"]
[BlackClock "0:01:55"]

1. d4 {[%clk 0:03:00]}  Nf6 {[%clk 0:02:47]} 2. c4 {[%clk 0:03:01]}  e6 {[%clk 0:02:48]} 3. Nf3 {[%clk 0:03:01]}  c5 {[%clk 0:02:48]} 4. d5 {[%clk 0:03:00]}  exd5 {[%clk 0:02:49]} 5. cxd5 {[%clk 0:03:01]}  d6 {[%clk 0:02:49]} 6. Nc3 {[%clk 0:03:02]}  g6 {[%clk 0:02:50]} 7. h3 {[%clk 0:03:02]}  Bg7 {[%clk 0:02:50]} 8. e4 {[%clk 0:03:03]}  O-O {[%clk 0:02:51]} 9. Bd3 {[%clk 0:03:03]}  Re8 {[%clk 0:02:52]} 10. O-O {[%clk 0:03:03]}  Nbd7 {[%clk 0:02:51]} 11. Re1 {[%clk 0:03:03]}  a6 {[%clk 0:02:52]} 12. a4 {[%clk 0:03:02]}  Qc7 {[%clk 0:02:51]} 13. Bf4 {[%clk 0:02:56]}  c4 {[%clk 0:02:49]} 14. Bc2 {[%clk 0:02:54]}  Nh5 {[%clk 0:02:46]} 15. Bh2 {[%clk 0:02:51]}  Nc5 {[%clk 0:02:41]} 16. Nd2 {[%clk 0:02:08]}  Nd3 {[%clk 0:02:34]} 17. Bxd3 {[%clk 0:02:07]}  cxd3 {[%clk 0:02:35]} 18. Qf3 {[%clk 0:02:05]}  Bxc3 {[%clk 0:02:30]} 19. Rec1 {[%clk 0:02:00]}  Qb6 {[%clk 0:02:17]} 20. bxc3 {[%clk 0:01:57]}  Bd7 {[%clk 0:02:07]} 21. Qxd3 {[%clk 0:01:46]}  Rac8 {[%clk 0:01:55]} 22. Nc4 {[%clk 0:01:42]} 1-0


[Site "https://www.chess.com"]